[Event "*** Titled Tuesday Blitz"]
[Site "Chess.com"]
[Date "2020.05.05"]
[Round "5"]
[White "Nostradamus123"]
[Black "agrigo3"]
[Result "1-0"]
[WhiteElo "2498"]
[BlackElo "2325"]
[TimeControl "180+1"]
[EndTime "10:57:54 PDT"]
[Termination "Nostradamus123 won on time"]

1. d4 {[%clk 0:03:00.9]} 1... d6 {[%clk 0:02:59.6]} 2. e4 {[%clk 0:02:55.3]}
2... Nf6 {[%clk 0:02:58.6]} 3. Nc3 {[%clk 0:02:52.2]} 3... g6 {[%clk 0:02:58.6]}
4. f4 {[%clk 0:02:52]} 4... Bg7 {[%clk 0:02:58.2]} 5. Nf3 {[%clk 0:02:52.1]}
5... O-O {[%clk 0:02:57.6]} 6. Bd3 {[%clk 0:02:52.6]} 6... Na6 {[%clk
0:02:56.6]} 7. O-O {[%clk 0:02:51.5]} 7... c5 {[%clk 0:02:54.6]} 8. d5 {[%clk
0:02:51.3]} 8... Rb8 {[%clk 0:02:39]} 9. Kh1 {[%clk 0:02:47.9]} 9... Nc7 {[%clk
0:02:22.5]} 10. a4 {[%clk 0:02:44.9]} 10... a6 {[%clk 0:02:22.7]} 11. a5 {[%clk
0:02:43.4]} 11... Nb5 {[%clk 0:02:19.8]} 12. Bxb5 {[%clk 0:02:36.8]} 12... axb5
{[%clk 0:02:19.5]} 13. e5 {[%clk 0:02:36.3]} 13... Ne8 {[%clk 0:01:48.9]} 14.
Nxb5 {[%clk 0:02:31.9]} 14... Bg4 {[%clk 0:01:46.2]} 15. c4 {[%clk 0:02:26.2]}
15... dxe5 {[%clk 0:01:41.7]} 16. fxe5 {[%clk 0:02:24.3]} 16... Bxe5 {[%clk
0:01:40.7]} 17. Qe1 {[%clk 0:02:18.1]} 17... Bg7 {[%clk 0:01:34.3]} 18. Bg5
{[%clk 0:02:17.5]} 18... Nf6 {[%clk 0:01:26.7]} 19. Ne5 {[%clk 0:02:17.1]} 19...
Bf5 {[%clk 0:01:16.5]} 20. a6 {[%clk 0:02:17.3]} 20... Ne4 {[%clk 0:01:05]} 21.
a7 {[%clk 0:02:12.5]} 21... Nxg5 {[%clk 0:00:40.7]} 22. axb8=Q {[%clk
0:02:09.3]} 22... Qxb8 {[%clk 0:00:40.5]} 23. Rxf5 {[%clk 0:02:00.7]} 23... gxf5
{[%clk 0:00:38.9]} 24. Nd7 {[%clk 0:02:00.7]} 24... Qf4 {[%clk 0:00:32]} 25.
Nxf8 {[%clk 0:01:59.1]} 25... Bxf8 {[%clk 0:00:31.8]} 26. b3 {[%clk 0:01:53.4]}
26... Ne4 {[%clk 0:00:30.1]} 27. Ra8 {[%clk 0:01:47.5]} 27... h6 {[%clk
0:00:20]} 28. Qa1 {[%clk 0:01:30.9]} 28... f6 {[%clk 0:00:17.6]} 29. b4 {[%clk
0:01:06.9]} 29... Nf2+ {[%clk 0:00:14]} 30. Kg1 {[%clk 0:01:06.2]} 30... Ng4
{[%clk 0:00:13.7]} 31. bxc5 {[%clk 0:00:36]} 31... Qxh2+ {[%clk 0:00:12.5]} 32.
Kf1 {[%clk 0:00:36.1]} 32... Qh1+ {[%clk 0:00:12.5]} 33. Ke2 {[%clk 0:00:36.1]}
33... Qxg2+ {[%clk 0:00:13.4]} 34. Kd3 {[%clk 0:00:36.2]} 34... Qf3+ {[%clk
0:00:13.2]} 35. Kc2 {[%clk 0:00:35.9]} 35... Ne3+ {[%clk 0:00:12.9]} 36. Kb3
{[%clk 0:00:30.8]} 36... Nxd5+ {[%clk 0:00:12.5]} 37. Ka4 {[%clk 0:00:28]} 37...
Nf4 {[%clk 0:00:10.3]} 38. Nd4 {[%clk 0:00:24.3]} 38... Qe4 {[%clk 0:00:09.6]}
39. Qc3 {[%clk 0:00:17.6]} 39... Kf7 {[%clk 0:00:09.1]} 40. Nb5 {[%clk
0:00:14.9]} 40... Nd3 {[%clk 0:00:07.5]} 41. Qd4 {[%clk 0:00:12.4]} 41... Qxd4
{[%clk 0:00:06.7]} 42. Nxd4 {[%clk 0:00:13.3]} 42... Nxc5+ {[%clk 0:00:06.9]}
43. Kb5 {[%clk 0:00:14.2]} 43... Ne4 {[%clk 0:00:05.6]} 44. Kb6 {[%clk
0:00:13.6]} 44... Nd6 {[%clk 0:00:05.1]} 45. Kc5 {[%clk 0:00:11.4]} 45... e5
{[%clk 0:00:04.4]} 46. Ne2 {[%clk 0:00:08.8]} 46... Ne4+ {[%clk 0:00:03.3]} 47.
Kd5 {[%clk 0:00:08.7]} 47... Nd6 {[%clk 0:00:02.3]} 48. Ra7 {[%clk 0:00:08.8]}
48... f4 {[%clk 0:00:02.1]} 49. c5 {[%clk 0:00:08.9]} 49... f3 {[%clk
0:00:02.3]} 50. Ng3 {[%clk 0:00:06.7]} 1-0

[Event "*** Titled Tuesday Blitz"]
[Site "Chess.com"]
[Date "2020.05.05"]
[Round "5"]
[White "Morshynska"]
[Black "Quattroporte300"]
[Result "0-1"]
[WhiteElo "2137"]
[BlackElo "2323"]
[TimeControl "180+1"]
[EndTime "10:57:54 PDT"]
[Termination "Quattroporte300 won by resignation"]

1. e4 {[%clk 0:03:00.9]} 1... e5 {[%clk 0:02:59.1]} 2. Nf3 {[%clk 0:02:58.7]}
2... Nc6 {[%clk 0:02:59]} 3. Bc4 {[%clk 0:02:57.3]} 3... Bc5 {[%clk 0:02:58.6]}
4. d3 {[%clk 0:02:56.8]} 4... Nf6 {[%clk 0:02:58.7]} 5. c3 {[%clk 0:02:56.8]}
5... d6 {[%clk 0:02:58.6]} 6. Bb3 {[%clk 0:02:56.5]} 6... a6 {[%clk 0:02:56.8]}
7. h3 {[%clk 0:02:53.6]} 7... Ba7 {[%clk 0:02:56.7]} 8. Nbd2 {[%clk 0:02:52.9]}
8... h6 {[%clk 0:02:56.8]} 9. Nf1 {[%clk 0:02:51.8]} 9... d5 {[%clk 0:02:50.4]}
10. Qe2 {[%clk 0:02:51.1]} 10... O-O {[%clk 0:02:42.2]} 11. g4 {[%clk
0:02:48.7]} 11... dxe4 {[%clk 0:02:00.7]} 12. dxe4 {[%clk 0:02:49.6]} 12... Na5
{[%clk 0:01:56.7]} 13. Bc2 {[%clk 0:02:39.3]} 13... Be6 {[%clk 0:01:44.3]} 14.
b3 {[%clk 0:02:34.1]} 14... Nd7 {[%clk 0:01:39.9]} 15. g5 {[%clk 0:02:28.6]}
15... h5 {[%clk 0:01:28.1]} 16. g6 {[%clk 0:02:17.6]} 16... fxg6 {[%clk
0:01:23.7]} 17. Be3 {[%clk 0:01:56]} 17... Qf6 {[%clk 0:01:15.4]} 18. Ng5 {[%clk
0:01:43.6]} 18... Bxe3 {[%clk 0:01:03.9]} 19. Qxe3 {[%clk 0:01:44.5]} 19... b5
{[%clk 0:00:52.7]} 20. Rg1 {[%clk 0:01:38.9]} 20... Bf7 {[%clk 0:00:43.7]} 21.
O-O-O {[%clk 0:01:34.2]} 21... Rad8 {[%clk 0:00:41.7]} 22. Kb2 {[%clk
0:01:04.2]} 22... Nb6 {[%clk 0:00:29.3]} 23. Rxd8 {[%clk 0:00:35]} 23... Rxd8
{[%clk 0:00:19.2]} 24. Qc5 {[%clk 0:00:34.3]} 24... Qd6 {[%clk 0:00:14.3]} 25.
Qxd6 {[%clk 0:00:19.8]} 25... Rxd6 {[%clk 0:00:14.9]} 26. f4 {[%clk 0:00:18.6]}
26... exf4 {[%clk 0:00:13.7]} 27. e5 {[%clk 0:00:19.5]} 27... Rd8 {[%clk
0:00:12.7]} 28. e6 {[%clk 0:00:17.4]} 28... Be8 {[%clk 0:00:12.4]} 29. Nh2
{[%clk 0:00:15.7]} 29... Nc6 {[%clk 0:00:10.7]} 30. Nhf3 {[%clk 0:00:14.4]}
30... Nd5 {[%clk 0:00:10.5]} 31. Nh4 {[%clk 0:00:13.9]} 31... Nf6 {[%clk
0:00:09]} 32. Nxg6 {[%clk 0:00:12.5]} 32... Rd2 {[%clk 0:00:07.4]} 33. Kc1
{[%clk 0:00:10.9]} 33... Rxc2+ {[%clk 0:00:07.7]} 34. Kxc2 {[%clk 0:00:11.8]}
34... Bxg6+ {[%clk 0:00:08.6]} 35. Kb2 {[%clk 0:00:12]} 35... Bf5 {[%clk
0:00:08]} 36. Re1 {[%clk 0:00:10.5]} 36... Kf8 {[%clk 0:00:07.8]} 37. c4 {[%clk
0:00:10.2]} 37... bxc4 {[%clk 0:00:06.5]} 38. bxc4 {[%clk 0:00:11.1]} 38... Ke7
{[%clk 0:00:07]} 39. Kc3 {[%clk 0:00:11.1]} 39... g6 {[%clk 0:00:05.1]} 40. a3
{[%clk 0:00:10.8]} 40... Na5 {[%clk 0:00:05]} 41. Rf1 {[%clk 0:00:10.5]} 41...
Ne4+ {[%clk 0:00:03.3]} 42. Kd4 {[%clk 0:00:09.9]} 42... Nxg5 {[%clk 0:00:03.1]}
43. Rxf4 {[%clk 0:00:09.1]} 43... Nxe6+ {[%clk 0:00:03.7]} 44. Ke5 {[%clk
0:00:08.9]} 44... Nxf4 {[%clk 0:00:04.2]} 45. Kxf4 {[%clk 0:00:09.8]} 45... Nxc4
{[%clk 0:00:04.9]} 46. a4 {[%clk 0:00:09.5]} 46... Nb2 {[%clk 0:00:05.2]} 47. a5
{[%clk 0:00:10.4]} 47... Nc4 {[%clk 0:00:05.7]} 48. Kg5 {[%clk 0:00:09.9]} 48...
Nxa5 {[%clk 0:00:06.6]} 49. h4 {[%clk 0:00:10.8]} 49... c5 {[%clk 0:00:06.6]}
50. Kh6 {[%clk 0:00:11.7]} 50... c4 {[%clk 0:00:07.5]} 51. Kg7 {[%clk
0:00:11.4]} 51... c3 {[%clk 0:00:07.7]} 52. Kh7 {[%clk 0:00:11.3]} 52... c2
{[%clk 0:00:07.8]} 0-1

[Event "*** Titled Tuesday Blitz"]
[Site "Chess.com"]
[Date "2020.05.05"]
[Round "5"]
[White "ZarinaShafigullina"]
[Black "FROGGY64"]
[Result "1-0"]
[WhiteElo "2244"]
[BlackElo "2432"]
[TimeControl "180+1"]
[EndTime "10:57:55 PDT"]
[Termination "ZarinaShafigullina won by resignation"]

1. d4 {[%clk 0:03:00.9]} 1... e6 {[%clk 0:02:59.2]} 2. Nf3 {[%clk 0:03:01.8]}
2... f5 {[%clk 0:02:57.8]} 3. g3 {[%clk 0:03:02]} 3... b6 {[%clk 0:02:55.9]} 4.
Bg2 {[%clk 0:03:02.3]} 4... Bb7 {[%clk 0:02:56.4]} 5. O-O {[%clk 0:03:03]} 5...
Nf6 {[%clk 0:02:56.5]} 6. c4 {[%clk 0:03:03.6]} 6... Be7 {[%clk 0:02:55.9]} 7.
Nc3 {[%clk 0:03:04.1]} 7... O-O {[%clk 0:02:55.3]} 8. d5 {[%clk 0:03:04.5]} 8...
Na6 {[%clk 0:02:55.4]} 9. a3 {[%clk 0:03:02.1]} 9... Nc5 {[%clk 0:02:54.7]} 10.
b4 {[%clk 0:02:56]} 10... Nce4 {[%clk 0:02:54.2]} 11. Bb2 {[%clk 0:02:42.2]}
11... Nxc3 {[%clk 0:02:48.8]} 12. Bxc3 {[%clk 0:02:41.8]} 12... exd5 {[%clk
0:02:48.8]} 13. cxd5 {[%clk 0:02:03.4]} 13... Nxd5 {[%clk 0:02:42.3]} 14. Bb2
{[%clk 0:01:55.4]} 14... Nf6 {[%clk 0:02:34.9]} 15. Rc1 {[%clk 0:01:52.2]} 15...
Be4 {[%clk 0:02:24.5]} 16. Qb3+ {[%clk 0:01:38.6]} 16... d5 {[%clk 0:02:18.1]}
17. Ne5 {[%clk 0:01:35.4]} 17... Bxg2 {[%clk 0:02:14.5]} 18. Nc6 {[%clk
0:01:30.2]} 18... Qd7 {[%clk 0:02:08.4]} 19. Kxg2 {[%clk 0:01:16.9]} 19... Kh8
{[%clk 0:01:33]} 20. Rfd1 {[%clk 0:01:06.1]} 20... Qe6 {[%clk 0:01:30.5]} 21.
Nxe7 {[%clk 0:00:51.5]} 21... Qxe7 {[%clk 0:01:26.9]} 22. Bxf6 {[%clk
0:00:46.6]} 22... Qxf6 {[%clk 0:01:09.7]} 23. Rxc7 {[%clk 0:00:36.3]} 23... f4
{[%clk 0:01:07.8]} 24. f3 {[%clk 0:00:26.1]} 24... fxg3 {[%clk 0:01:06.6]} 25.
hxg3 {[%clk 0:00:25.8]} 25... Qe5 {[%clk 0:01:06.7]} 26. Rc2 {[%clk 0:00:23.5]}
26... Rad8 {[%clk 0:01:05.2]} 27. Qc3 {[%clk 0:00:23.4]} 27... d4 {[%clk
0:01:05]} 28. Qc7 {[%clk 0:00:22.3]} 28... Qf5 {[%clk 0:01:00.6]} 29. Rcd2
{[%clk 0:00:20.5]} 29... Qf6 {[%clk 0:00:55.5]} 30. Qc4 {[%clk 0:00:18.7]} 30...
Rfe8 {[%clk 0:00:52.6]} 31. Kf2 {[%clk 0:00:16.4]} 31... Qe5 {[%clk 0:00:50.6]}
32. Rxd4 {[%clk 0:00:15.6]} 32... Qe3+ {[%clk 0:00:50.6]} 33. Kg2 {[%clk
0:00:15.2]} 33... Rxd4 {[%clk 0:00:48]} 34. Rxd4 {[%clk 0:00:15]} 34... Qxe2+
{[%clk 0:00:41.4]} 35. Qxe2 {[%clk 0:00:15.2]} 35... Rxe2+ {[%clk 0:00:41.8]}
36. Kf1 {[%clk 0:00:15.5]} 36... Re8 {[%clk 0:00:42.2]} 37. Rd7 {[%clk
0:00:15.4]} 37... Ra8 {[%clk 0:00:42.5]} 38. Ke2 {[%clk 0:00:15.1]} 38... h6
{[%clk 0:00:41.1]} 39. Rb7 {[%clk 0:00:14.4]} 39... Kh7 {[%clk 0:00:40.6]} 40.
Kd3 {[%clk 0:00:14.3]} 40... Kg6 {[%clk 0:00:39.8]} 41. Kc4 {[%clk 0:00:13.3]}
41... Kf6 {[%clk 0:00:35.2]} 42. Kb5 {[%clk 0:00:13.2]} 42... Rd8 {[%clk
0:00:31.4]} 43. Rxa7 {[%clk 0:00:12.9]} 43... Rd3 {[%clk 0:00:31.3]} 44. Kxb6
{[%clk 0:00:12]} 44... Rxf3 {[%clk 0:00:31.4]} 45. b5 {[%clk 0:00:12.2]} 45...
Rxg3 {[%clk 0:00:31.6]} 46. a4 {[%clk 0:00:11]} 46... h5 {[%clk 0:00:31.6]} 47.
a5 {[%clk 0:00:10.9]} 47... h4 {[%clk 0:00:31.8]} 48. a6 {[%clk 0:00:10.8]}
48... h3 {[%clk 0:00:31.8]} 49. Ra8 {[%clk 0:00:11.1]} 49... Rg6 {[%clk
0:00:30]} 50. Rh8 {[%clk 0:00:10.3]} 50... Kg5+ {[%clk 0:00:29.4]} 51. Ka5
{[%clk 0:00:09.9]} 51... Rh6 {[%clk 0:00:29.3]} 52. Rxh6 {[%clk 0:00:08.7]}
52... gxh6 {[%clk 0:00:29.5]} 53. a7 {[%clk 0:00:09.4]} 53... h2 {[%clk
0:00:29.8]} 54. a8=Q {[%clk 0:00:09.8]} 54... Kg4 {[%clk 0:00:29.2]} 55. Qh1
{[%clk 0:00:09.5]} 55... Kg3 {[%clk 0:00:28.9]} 56. b6 {[%clk 0:00:09.9]} 56...
h5 {[%clk 0:00:29.2]} 57. b7 {[%clk 0:00:09.5]} 57... h4 {[%clk 0:00:30.1]} 58.
b8=Q+ {[%clk 0:00:09.6]} 1-0

[Event "*** Titled Tuesday Blitz"]
[Site "Chess.com"]
[Date "2020.05.05"]
[Round "5"]
[White "Sesleria"]
[Black "EfrenRamos1"]
[Result "1/2-1/2"]
[WhiteElo "2062"]
[BlackElo "2194"]
[TimeControl "180+1"]
[EndTime "10:57:55 PDT"]
[Termination "Game drawn - insufficient material"]

1. e4 {[%clk 0:03:00.9]} 1... c5 {[%clk 0:02:58.6]} 2. Nf3 {[%clk 0:03:00.3]}
2... Nc6 {[%clk 0:02:57.6]} 3. Bb5 {[%clk 0:03:00.2]} 3... d6 {[%clk 0:02:56.5]}
4. O-O {[%clk 0:02:59.3]} 4... Bd7 {[%clk 0:02:56.1]} 5. c3 {[%clk 0:02:57.4]}
5... a6 {[%clk 0:02:54]} 6. Bd3 {[%clk 0:02:55.7]} 6... Nf6 {[%clk 0:02:49.9]}
7. Bc2 {[%clk 0:02:54.9]} 7... Bg4 {[%clk 0:02:49.5]} 8. h3 {[%clk 0:02:53.6]}
8... Bxf3 {[%clk 0:02:49.8]} 9. Qxf3 {[%clk 0:02:53]} 9... g6 {[%clk 0:02:47.1]}
10. d3 {[%clk 0:02:35.6]} 10... Bg7 {[%clk 0:02:44.1]} 11. Nd2 {[%clk
0:02:32.9]} 11... O-O {[%clk 0:02:41.9]} 12. Nc4 {[%clk 0:02:24.5]} 12... b5
{[%clk 0:02:40.3]} 13. Ne3 {[%clk 0:02:21.6]} 13... e6 {[%clk 0:02:37.6]} 14.
Qe2 {[%clk 0:02:08.6]} 14... Qb6 {[%clk 0:02:35]} 15. Kh1 {[%clk 0:02:01.9]}
15... Rad8 {[%clk 0:02:30.6]} 16. f4 {[%clk 0:02:01.2]} 16... a5 {[%clk
0:02:27.1]} 17. g4 {[%clk 0:01:47]} 17... a4 {[%clk 0:02:20.9]} 18. Bd2 {[%clk
0:01:23.8]} 18... Rfe8 {[%clk 0:02:13.7]} 19. Rg1 {[%clk 0:01:19.5]} 19... a3
{[%clk 0:02:09]} 20. bxa3 {[%clk 0:01:07.9]} 20... Ra8 {[%clk 0:02:06.9]} 21. a4
{[%clk 0:01:04.8]} 21... bxa4 {[%clk 0:02:03.1]} 22. Nc4 {[%clk 0:01:04.8]}
22... Qc7 {[%clk 0:02:01.7]} 23. g5 {[%clk 0:01:02.9]} 23... Nh5 {[%clk
0:01:59.2]} 24. Qf3 {[%clk 0:00:44.6]} 24... d5 {[%clk 0:01:54.3]} 25. exd5
{[%clk 0:00:41.9]} 25... exd5 {[%clk 0:01:52.6]} 26. Qxd5 {[%clk 0:00:41.6]}
26... Re2 {[%clk 0:01:42.6]} 27. Raf1 {[%clk 0:00:35.1]} 27... Rae8 {[%clk
0:01:36.5]} 28. Bxa4 {[%clk 0:00:30.9]} 28... R8e6 {[%clk 0:01:20.6]} 29. Bd1
{[%clk 0:00:25.7]} 29... Ne7 {[%clk 0:01:08.3]} 30. Qa8+ {[%clk 0:00:24.4]}
30... Bf8 {[%clk 0:01:06.3]} 31. Bxe2 {[%clk 0:00:24.5]} 31... Rxe2 {[%clk
0:01:03.4]} 32. Qf3 {[%clk 0:00:23.6]} 32... Nf5 {[%clk 0:00:57.9]} 33. Be1
{[%clk 0:00:18.1]} 33... Qe7 {[%clk 0:00:53]} 34. Ne5 {[%clk 0:00:16.7]} 34...
Rxa2 {[%clk 0:00:48.3]} 35. d4 {[%clk 0:00:15.4]} 35... cxd4 {[%clk 0:00:47]}
36. c4 {[%clk 0:00:15.4]} 36... Ne3 {[%clk 0:00:19.1]} 37. Rf2 {[%clk
0:00:14.6]} 37... Rxf2 {[%clk 0:00:17]} 38. Bxf2 {[%clk 0:00:14.9]} 38... Nf5
{[%clk 0:00:16.1]} 39. Qd5 {[%clk 0:00:13.7]} 39... Nxf4 {[%clk 0:00:15.4]} 40.
Qe4 {[%clk 0:00:13.5]} 40... Ne6 {[%clk 0:00:15.4]} 41. Rd1 {[%clk 0:00:11.5]}
41... Nxg5 {[%clk 0:00:15.8]} 42. Qd5 {[%clk 0:00:10.1]} 42... Nxh3 {[%clk
0:00:16]} 43. Bxd4 {[%clk 0:00:09.2]} 43... Nxd4 {[%clk 0:00:12.6]} 44. Rxd4
{[%clk 0:00:08.9]} 44... Nf2+ {[%clk 0:00:12.2]} 45. Kg2 {[%clk 0:00:08.4]}
45... Qg5+ {[%clk 0:00:10.6]} 46. Kxf2 {[%clk 0:00:08.5]} 46... Qf5+ {[%clk
0:00:09]} 47. Nf3 {[%clk 0:00:07.4]} 47... Bc5 {[%clk 0:00:05.5]} 48. Qxf5
{[%clk 0:00:06.7]} 48... gxf5 {[%clk 0:00:06.4]} 49. Ke3 {[%clk 0:00:04.8]}
49... Bxd4+ {[%clk 0:00:07.2]} 50. Kxd4 {[%clk 0:00:05.2]} 50... Kf8 {[%clk
0:00:07.6]} 51. Ke5 {[%clk 0:00:05.6]} 51... Ke7 {[%clk 0:00:08.5]} 52. Kxf5
{[%clk 0:00:06.1]} 52... Kd7 {[%clk 0:00:08.8]} 53. Kf6 {[%clk 0:00:05.4]} 53...
Kc6 {[%clk 0:00:09.7]} 54. Nd2 {[%clk 0:00:05.7]} 54... Kc5 {[%clk 0:00:10.4]}
55. Kxf7 {[%clk 0:00:06.2]} 55... h5 {[%clk 0:00:10.1]} 56. Kf6 {[%clk 0:00:06]}
56... h4 {[%clk 0:00:11]} 57. Ke5 {[%clk 0:00:06.6]} 57... h3 {[%clk 0:00:09.8]}
58. Ne4+ {[%clk 0:00:06.6]} 58... Kxc4 {[%clk 0:00:09.1]} 59. Ng3 {[%clk
0:00:07.5]} 59... h2 {[%clk 0:00:09.5]} 60. Kf4 {[%clk 0:00:08.4]} 60... h1=Q
{[%clk 0:00:09.3]} 61. Nxh1 {[%clk 0:00:08.6]} 1/2-1/2

[Event "*** Titled Tuesday Blitz"]
[Site "Chess.com"]
[Date "2020.05.05"]
[Round "5"]
[White "evgenyermolaev"]
[Black "abhidabhi"]
[Result "1/2-1/2"]
[WhiteElo "2599"]
[BlackElo "2766"]
[TimeControl "180+1"]
[EndTime "10:57:58 PDT"]
[Termination "Game drawn by repetition"]

1. e4 {[%clk 0:03:00.9]} 1... Nc6 {[%clk 0:02:59.3]} 2. Nf3 {[%clk 0:02:59.7]}
2... d5 {[%clk 0:02:59.4]} 3. exd5 {[%clk 0:02:46.9]} 3... Qxd5 {[%clk
0:03:00.3]} 4. Nc3 {[%clk 0:02:38.1]} 4... Qa5 {[%clk 0:02:59.6]} 5. Bb5 {[%clk
0:02:34.8]} 5... Bg4 {[%clk 0:02:58.8]} 6. h3 {[%clk 0:02:21]} 6... Bd7 {[%clk
0:02:22.7]} 7. b4 {[%clk 0:02:17.9]} 7... Qxb4 {[%clk 0:02:18.7]} 8. Rb1 {[%clk
0:02:11.7]} 8... Qd6 {[%clk 0:02:15.8]} 9. O-O {[%clk 0:02:08.5]} 9... Nf6
{[%clk 0:02:14.5]} 10. d4 {[%clk 0:01:49.2]} 10... e6 {[%clk 0:02:12.6]} 11. Re1
{[%clk 0:01:43.1]} 11... Be7 {[%clk 0:02:07.9]} 12. Rb3 {[%clk 0:01:31.1]} 12...
O-O {[%clk 0:01:24.5]} 13. Ba3 {[%clk 0:01:30.1]} 13... Qxa3 {[%clk 0:01:20.1]}
14. Rxa3 {[%clk 0:01:29.9]} 14... Bxa3 {[%clk 0:01:21]} 15. Ne5 {[%clk 0:01:23]}
15... Bb4 {[%clk 0:01:12.3]} 16. Nxd7 {[%clk 0:01:09.1]} 16... Nxd7 {[%clk
0:01:11.4]} 17. Bxc6 {[%clk 0:01:09.3]} 17... bxc6 {[%clk 0:01:11.1]} 18. Re3
{[%clk 0:01:03.5]} 18... Nf6 {[%clk 0:01:06.9]} 19. Ne4 {[%clk 0:00:59.3]} 19...
Nxe4 {[%clk 0:00:56.6]} 20. Rxe4 {[%clk 0:00:59.4]} 20... Rfd8 {[%clk
0:00:56.7]} 21. Qf3 {[%clk 0:00:53.5]} 21... Bd6 {[%clk 0:00:53.3]} 22. Rg4
{[%clk 0:00:53.1]} 22... Rab8 {[%clk 0:00:51.6]} 23. g3 {[%clk 0:00:52]} 23...
c5 {[%clk 0:00:48.9]} 24. dxc5 {[%clk 0:00:31.3]} 24... Bxc5 {[%clk 0:00:36.9]}
25. Qc3 {[%clk 0:00:31.2]} 25... Bf8 {[%clk 0:00:36.5]} 26. Qxc7 {[%clk
0:00:31.3]} 26... Rbc8 {[%clk 0:00:34.7]} 27. Qxa7 {[%clk 0:00:25.6]} 27... Rxc2
{[%clk 0:00:34.9]} 28. Rf4 {[%clk 0:00:25.9]} 28... f6 {[%clk 0:00:26.3]} 29.
Qb6 {[%clk 0:00:23.5]} 29... Rd6 {[%clk 0:00:20.3]} 30. Qb3 {[%clk 0:00:21.2]}
30... Rcc6 {[%clk 0:00:19.9]} 31. a4 {[%clk 0:00:20.4]} 31... Rb6 {[%clk
0:00:19.3]} 32. Qa2 {[%clk 0:00:19.7]} 32... Kf7 {[%clk 0:00:17.1]} 33. Kg2
{[%clk 0:00:19.1]} 33... Ra6 {[%clk 0:00:16.3]} 34. Rc4 {[%clk 0:00:16.2]} 34...
Rd5 {[%clk 0:00:15.8]} 35. Rc7+ {[%clk 0:00:15]} 35... Kg8 {[%clk 0:00:15.1]}
36. Rc8 {[%clk 0:00:13.7]} 36... Kf7 {[%clk 0:00:14.2]} 37. Qc4 {[%clk
0:00:13.4]} 37... Rad6 {[%clk 0:00:08.4]} 38. Rc6 {[%clk 0:00:13.1]} 38... Rxc6
{[%clk 0:00:07.3]} 39. Qxc6 {[%clk 0:00:14]} 39... Be7 {[%clk 0:00:07]} 40. Qb6
{[%clk 0:00:11.6]} 40... Bd8 {[%clk 0:00:05.5]} 41. Qb7+ {[%clk 0:00:08.6]}
41... Kf8 {[%clk 0:00:05]} 42. Qc8 {[%clk 0:00:07.8]} 42... Ke7 {[%clk
0:00:04.5]} 43. Qb7+ {[%clk 0:00:07.7]} 43... Kf8 {[%clk 0:00:04.8]} 44. h4
{[%clk 0:00:07.5]} 44... h5 {[%clk 0:00:04.7]} 45. Qb1 {[%clk 0:00:07.1]} 45...
Kf7 {[%clk 0:00:04.3]} 46. Qc2 {[%clk 0:00:06.3]} 46... Ba5 {[%clk 0:00:04.2]}
47. Qc8 {[%clk 0:00:05.4]} 47... Bd8 {[%clk 0:00:03.4]} 48. Qb7+ {[%clk
0:00:05.2]} 48... Kf8 {[%clk 0:00:03.4]} 49. Qb3 {[%clk 0:00:04.3]} 49... Kf7
{[%clk 0:00:03.7]} 50. Qb7+ {[%clk 0:00:03.9]} 50... Kf8 {[%clk 0:00:04.1]}
1/2-1/2

[Event "*** Titled Tuesday Blitz"]
[Site "Chess.com"]
[Date "2020.05.05"]
[Round "5"]
[White "Chepaschess"]
[Black "Savagelittlemole"]
[Result "1/2-1/2"]
[WhiteElo "2733"]
[BlackElo "2582"]
[TimeControl "180+1"]
[EndTime "10:57:59 PDT"]
[Termination "Game drawn - insufficient material"]

1. d4 {[%clk 0:03:00.9]} 1... Nf6 {[%clk 0:02:58.1]} 2. c4 {[%clk 0:03:00.6]}
2... g6 {[%clk 0:02:54.9]} 3. f3 {[%clk 0:02:58.1]} 3... Bg7 {[%clk 0:02:54]} 4.
e4 {[%clk 0:02:58.6]} 4... O-O {[%clk 0:02:51.8]} 5. Nc3 {[%clk 0:02:59.1]} 5...
d6 {[%clk 0:02:50.7]} 6. Nge2 {[%clk 0:02:59.6]} 6... c5 {[%clk 0:02:50.3]} 7.
d5 {[%clk 0:03:00]} 7... e6 {[%clk 0:02:50]} 8. Ng3 {[%clk 0:03:00.7]} 8... exd5
{[%clk 0:02:50]} 9. cxd5 {[%clk 0:03:01.6]} 9... a6 {[%clk 0:02:49.6]} 10. a4
{[%clk 0:03:00.5]} 10... h5 {[%clk 0:02:49.4]} 11. Be2 {[%clk 0:02:49.6]} 11...
h4 {[%clk 0:02:44.3]} 12. Nf1 {[%clk 0:02:48.9]} 12... Re8 {[%clk 0:02:41]} 13.
Bg5 {[%clk 0:02:38.1]} 13... h3 {[%clk 0:02:41]} 14. g4 {[%clk 0:02:32.1]} 14...
Qb6 {[%clk 0:02:32.8]} 15. Qd2 {[%clk 0:02:31.1]} 15... Nbd7 {[%clk 0:02:16.6]}
16. Ng3 {[%clk 0:02:28.3]} 16... Ne5 {[%clk 0:02:13.4]} 17. Be3 {[%clk
0:02:18.1]} 17... Qc7 {[%clk 0:01:43.9]} 18. g5 {[%clk 0:02:11.8]} 18... Nh7
{[%clk 0:01:26.7]} 19. O-O {[%clk 0:02:10.2]} 19... Bd7 {[%clk 0:01:13.7]} 20.
a5 {[%clk 0:01:35.8]} 20... b5 {[%clk 0:01:13.5]} 21. axb6 {[%clk 0:01:34.2]}
21... Qxb6 {[%clk 0:01:13.8]} 22. Rfb1 {[%clk 0:01:11.7]} 22... Qb4 {[%clk
0:01:08.7]} 23. Nd1 {[%clk 0:01:07.3]} 23... a5 {[%clk 0:00:54.9]} 24. Nf2
{[%clk 0:00:56.2]} 24... f6 {[%clk 0:00:21.3]} 25. f4 {[%clk 0:00:51.3]} 25...
Nf7 {[%clk 0:00:21.2]} 26. Qxb4 {[%clk 0:00:47.3]} 26... axb4 {[%clk 0:00:20.8]}
27. gxf6 {[%clk 0:00:36.7]} 27... Nxf6 {[%clk 0:00:19.5]} 28. Bc4 {[%clk
0:00:34.6]} 28... Ng4 {[%clk 0:00:15.6]} 29. Nxg4 {[%clk 0:00:32.8]} 29... Bxg4
{[%clk 0:00:16.5]} 30. Rxa8 {[%clk 0:00:26]} 30... Rxa8 {[%clk 0:00:17.4]} 31.
Rf1 {[%clk 0:00:15.7]} 31... Bxb2 {[%clk 0:00:16.3]} 32. e5 {[%clk 0:00:14.4]}
32... dxe5 {[%clk 0:00:15.5]} 33. d6 {[%clk 0:00:14.8]} 33... Kg7 {[%clk
0:00:13.7]} 34. Bxc5 {[%clk 0:00:12.3]} 34... Ra1 {[%clk 0:00:13.7]} 35. Rxa1
{[%clk 0:00:11.7]} 35... Bxa1 {[%clk 0:00:14.6]} 36. Bxb4 {[%clk 0:00:06.3]}
36... exf4 {[%clk 0:00:14.5]} 37. Ne4 {[%clk 0:00:06.1]} 37... Bd4+ {[%clk
0:00:13.1]} 38. Kf1 {[%clk 0:00:06.5]} 38... Bf3 {[%clk 0:00:12.4]} 39. d7
{[%clk 0:00:05.4]} 39... Bxe4 {[%clk 0:00:10.1]} 40. Bxf7 {[%clk 0:00:05.7]}
40... Bg2+ {[%clk 0:00:10.6]} 41. Ke1 {[%clk 0:00:05.3]} 41... Bb6 {[%clk
0:00:10.1]} 42. Bc4 {[%clk 0:00:04.3]} 42... f3 {[%clk 0:00:09.8]} 43. Bc5
{[%clk 0:00:03.6]} 43... Bd8 {[%clk 0:00:05.7]} 44. Kf2 {[%clk 0:00:03.6]} 44...
Kf6 {[%clk 0:00:05.7]} 45. Be3 {[%clk 0:00:02.1]} 45... g5 {[%clk 0:00:05.6]}
46. Bb5 {[%clk 0:00:01.9]} 46... g4 {[%clk 0:00:05.3]} 47. Kg3 {[%clk
0:00:02.5]} 47... Ke6 {[%clk 0:00:05.6]} 48. Bc4+ {[%clk 0:00:02.5]} 48... Kd6
{[%clk 0:00:05.8]} 49. Kxg4 {[%clk 0:00:03.3]} 49... Kxd7 {[%clk 0:00:06.2]} 50.
Kg3 {[%clk 0:00:03.6]} 50... Bc7+ {[%clk 0:00:06]} 51. Kf2 {[%clk 0:00:03.1]}
51... Bxh2 {[%clk 0:00:06.5]} 52. Bd5 {[%clk 0:00:03.7]} 52... Kd6 {[%clk
0:00:06.7]} 53. Bxf3 {[%clk 0:00:04.1]} 53... Bxf3 {[%clk 0:00:07.3]} 54. Kxf3
{[%clk 0:00:04.7]} 54... Be5 {[%clk 0:00:07.5]} 55. Bg1 {[%clk 0:00:05.1]} 55...
h2 {[%clk 0:00:06.8]} 56. Kg2 {[%clk 0:00:05]} 56... hxg1=Q+ {[%clk 0:00:05.7]}
57. Kxg1 {[%clk 0:00:05.9]} 1/2-1/2